[Event "ISR Youth-Ch Finals 2021 U18"]
[Site "Ramat Hasharon"]
[Date "2021.03.24"]
[Round "7.11"]
[White "Sobel, Alon"]
[Black "Mondri, Nadav"]
[Result "1-0"]
[ECO "A03"]
[WhiteElo "1825"]
[BlackElo "1803"]
[Annotator "NA RC"]
[PlyCount "79"]
[EventDate "2021.03.19"]
[EventType "swiss"]
[EventCountry "ISR"]
[SourceTitle "playchess.com"]
[Source "ChessBase"]
[SourceQuality "1"]
[TimeControl "5400+30"]

1. f4 {[%emt 0:03:07]} d5 {[%emt 0:01:03]} 2. Nf3 {[%emt 0:00:30]} c5 {[%emt 0:00:30]} 3. e3 {[%emt 0:00:30]} Nf6 {[%emt 0:00:30]} 4. d4 {[%emt 0:00:30]} Nc6 {[%emt 0:04:44]} 5. Be2 {[%emt 0:00:43]} Bf5 {[%emt 0:00:30]} 6. O-O {[%emt 0:00:30]} e6 {[%emt 0:00:30]} 7. Ne5 {[%emt 0:00:30]} h6 {[%emt 0:17:31]} 8. c3 {[%emt 0:18:16]} Be7 {[%emt 0:01:04]} 9. Bb5 {[%emt 0:03:03]} Qb6 {[%emt 0:00:39]} 10. Bxc6+ {[%emt 0:01:11]} bxc6 {[%emt 0:00:27]} 11. Nd2 {[%emt 0:03:12]} O-O {[%emt 0:02:05]} 12. g4 {[%emt 1:03:58]} Bh7 {[%emt 0:06:01]} 13. g5 {[%emt 0:00:00]} Ne4 {[%emt 0:02:51]} 14. g6 {[%emt 0:00:00]} Bxg6 {[%emt 0:02:50]} 15. Nd7 {[%emt 0:00:00]} Qc7 {[%emt 0:02:15]} 16. Nxf8 {[%emt 0:00:00]} Rxf8 {[%emt 0:02:29]} 17. Nxe4 {[%emt 0:00:00]} Bxe4 {[%emt 0:00:08]} 18. Bd2 {[%emt 0:00:00]} g5 {[%emt 0:03:15]} 19. Qh5 {[%emt 0:00:00]} Kh7 {[%emt 0:01:24]} 20. dxc5 {[%emt 0:04:00]} gxf4 {[%emt 0:01:12]} 21. Rxf4 {[%emt 0:00:00]} f5 {[%emt 0:08:20]} 22. Kf2 {[%emt 0:00:00]} Bxc5 {[%emt 0:07:24]} 23. Rh4 {[%emt 0:00:00]} Qg7 {[%emt 0:01:26]} 24. Rg1 {[%emt 0:00:00]} Qf6 {[%emt 0:00:44]} 25. Ke2 {[%emt 0:00:00]} Rf7 {[%emt 0:09:27]} 26. c4 {[%emt 0:00:00]} Rb7 {[%emt 0:02:09]} 27. b3 {[%emt 0:00:00]} e5 {[%emt 0:09:21]} 28. Bc3 {[%emt 0:00:00]} d4 {[%emt 0:01:18]} 29. exd4 exd4 {[%emt 0:00:49]} 30. Bd2 {[%emt 0:00:00]} d3+ {[%emt 0:00:57]} 31. Kf1 {[%emt 0:00:00]} Qa1+ {[%emt 0:03:25]} 32. Be1 {[%emt 0:00:00]} Qf6 {[%emt 0:00:54]} 33. Bc3 {[%emt 0:00:09]} Qe6 {[%emt 0:02:14]} 34. Rxe4 {[%emt 0:01:49]} fxe4 {[%emt 0:00:59]} 35. Qxc5 {[%emt 0:00:07]} Rf7+ {[%emt 0:01:13]} 36. Ke1 {[%emt 0:00:29]} e3 {[%emt 0:03:11]} 37. Qe5 {[%emt 0:05:02]} d2+ {[%emt 0:01:26]} 38. Ke2 {[%emt 0:00:43]} d1=Q+ {[%emt 0:01:11]} 39. Kxd1 {[%emt 0:00:22]} Rd7+ {[%emt 0:00:32]} 40. Kc1 {[%emt 0:00:13]} 1-0

[Event "ISR Youth-Ch Finals 2021 U18"]
[Site "Ramat Hasharon"]
[Date "2021.03.26"]
[Round "9.2"]
[White "Gorodetzky, Matan"]
[Black "Ehrlich, Roy"]
[Result "0-1"]
[ECO "C18"]
[WhiteElo "2253"]
[BlackElo "2004"]
[Annotator "ChessBase"]
[PlyCount "88"]
[EventDate "2021.03.19"]
[EventType "swiss"]
[EventCountry "ISR"]
[SourceTitle "playchess.com"]
[Source "ChessBase"]
[SourceQuality "1"]
[TimeControl "5400+30"]

1. e4 {[%emt 0:00:00]} e6 {[%emt 0:00:00]} 2. d4 {[%emt 0:00:00]} d5 {[%emt 0:00:00]} 3. Nc3 {[%emt 0:00:00]} Bb4 {[%emt 0:00:00]} 4. e5 {[%emt 0:00:00]} c5 {[%emt 0:00:00]} 5. a3 {[%emt 0:00:00]} Ba5 {[%emt 0:00:00]} 6. Qg4 {[%emt 0:00:03]} Ne7 {[%emt 0:02:53]} 7. dxc5 {[%emt 0:00:15]} d4 {[%emt 0:24:27]} 8. b4 {[%emt 0:00:06]} dxc3 {[%emt 0:07:25]} 9. Qxg7 {[%emt 0:00:34]} Rg8 {[%emt 0:00:14]} 10. Qxh7 {[%emt 0:00:05]} Bc7 {[%emt 0:04:33]} 11. Nf3 {[%emt 0:00:08]} Nbc6 {[%emt 0:19:06]} 12. Bf4 {[%emt 0:00:17]} Rg4 {[%emt 0:07:45]} 13. Rd1 {[%emt 0:00:57]} Nd5 {[%emt 0:07:13]} 14. g3 {[%emt 0:07:19]} Qe7 {[%emt 0:00:21]} 15. h3 {[%emt 0:03:21]} Rxf4 {[%emt 0:00:04]} 16. gxf4 {[%emt 0:00:04]} Bd7 {[%emt 0:03:13]} 17. Bc4 {[%emt 0:06:24]} O-O-O {[%emt 0:00:49]} 18. Bxd5 {[%emt 0:00:46]} exd5 {[%emt 0:00:01]} 19. Rxd5 {[%emt 0:00:10]} Qe6 {[%emt 0:05:09]} 20. Qd3 {[%emt 0:23:24]} Ne7 {[%emt 0:00:09]} 21. Rd6 {[%emt 0:00:35]} Bxd6 {[%emt 0:00:18]} 22. cxd6 {[%emt 0:02:12]} Bc6 {[%emt 0:07:24]} 23. Ng5 {[%emt 0:05:51]} Qg6 {[%emt 0:03:17]} 24. Qxc3 {[%emt 0:00:53]} Nd5 {[%emt 0:00:15]} 25. Qc4 {[%emt 0:02:09]} Nxf4 {[%emt 0:00:56]} 26. Qxf4 {[%emt 0:11:37]} Bxh1 {[%emt 0:00:41]} 27. Qc4+ {[%emt 0:00:09]} Bc6 {[%emt 0:00:06]} 28. f4 {[%emt 0:00:43]} f6 {[%emt 0:03:58]} 29. b5 {[%emt 0:05:08]} fxe5 {[%emt 0:00:05]} 30. bxc6 {[%emt 0:00:07]} Qxd6 {[%emt 0:00:29]} 31. Qe6+ {[%emt 0:02:19]} Qxe6 {[%emt 0:00:14]} 32. Nxe6 {[%emt 0:00:01]} Re8 {[%emt 0:00:19]} 33. cxb7+ {[%emt 0:00:25]} Kxb7 {[%emt 0:00:05]} 34. f5 {[%emt 0:00:06]} Kc6 {[%emt 0:01:11]} 35. c4 {[%emt 0:08:31]} Kd6 {[%emt 0:02:33]} 36. Ke2 {[%emt 0:03:59]} Rh8 {[%emt 0:00:52]} 37. Ng5 {[%emt 0:02:33]} Rh5 {[%emt 0:00:19]} 38. Nf7+ {[%emt 0:02:21]} Kc5 {[%emt 0:00:37]} 39. f6 {[%emt 0:00:12]} Rf5 {[%emt 0:00:13]} 40. Kd3 {[%emt 0:02:41]} Rxf6 {[%emt 0:00:10]} 41. Nxe5 {[%emt 0:00:00]} Ra6 {[%emt 0:00:26]} 42. Ke4 {[%emt 0:06:04]} Rxa3 {[%emt 0:00:07]} 43. Nf3 {[%emt 0:00:07]} a5 {[%emt 0:00:30]} 44. h4 {[%emt 0:00:11]} Rxf3 {[%emt 0:00:30]} 0-1

[Event "ISR Youth-Ch Finals 2021 U18"]
[Site "Ramat Hasharon"]
[Date "2021.03.26"]
[Round "9.5"]
[White "Gorshtein, Asaf"]
[Black "Zemach, Roee"]
[Result "1/2-1/2"]
[ECO "A33"]
[WhiteElo "2122"]
[BlackElo "2292"]
[Annotator "ChessBase"]
[PlyCount "62"]
[EventDate "2021.03.19"]
[EventType "swiss"]
[EventCountry "ISR"]
[SourceTitle "playchess.com"]
[Source "ChessBase"]
[SourceQuality "1"]
[TimeControl "5400+30"]

1. Nf3 {[%emt 0:00:14]} Nf6 {[%emt 0:00:00]} 2. c4 {[%emt 0:00:21]} e6 {[%emt 0:00:34]} 3. d4 {[%emt 0:00:39]} c5 {[%emt 0:03:26]} 4. Nc3 {[%emt 0:01:41]} cxd4 {[%emt 0:01:44]} 5. Nxd4 {[%emt 0:00:13]} Nc6 {[%emt 0:00:56]} 6. a3 {[%emt 0:02:16]} d5 {[%emt 0:05:32]} 7. cxd5 {[%emt 0:01:16]} Nxd5 {[%emt 0:02:19]} 8. Nxc6 {[%emt 0:00:36]} bxc6 {[%emt 0:00:07]} 9. e4 {[%emt 0:01:40]} Nxc3 {[%emt 0:01:00]} 10. Qxd8+ {[%emt 0:00:05]} Kxd8 {[%emt 0:00:06]} 11. bxc3 {[%emt 0:00:05]} Rb8 {[%emt 0:05:31]} 12. Bc4 {[%emt 0:01:52]} Bc5 {[%emt 0:05:54]} 13. Bf4 {[%emt 0:01:35]} Rb6 {[%emt 0:00:56]} 14. Be5 {[%emt 0:05:11]} f6 {[%emt 0:04:31]} 15. Bd4 {[%emt 0:03:01]} Bxd4 {[%emt 0:00:11]} 16. cxd4 {[%emt 0:01:27]} Ke7 {[%emt 0:00:30]} 17. O-O-O {[%emt 0:03:38]} Bd7 {[%emt 0:05:53]} 18. Kc2 {[%emt 0:03:50]} Rhb8 {[%emt 0:07:36]} 19. Rb1 {[%emt 0:00:07]} e5 {[%emt 0:02:09]} 20. d5 {[%emt 0:11:47]} Rxb1 {[%emt 0:09:07]} 21. Rxb1 {[%emt 0:00:07]} Rxb1 {[%emt 0:00:07]} 22. Kxb1 {[%emt 0:00:09]} Kd6 {[%emt 0:00:13]} 23. Kc2 {[%emt 0:00:26]} Kc5 {[%emt 0:00:09]} 24. Kc3 {[%emt 0:00:04]} g5 {[%emt 0:00:53]} 25. g3 {[%emt 0:03:15]} h6 {[%emt 0:00:42]} 26. dxc6 {[%emt 0:03:31]} Bxc6 {[%emt 0:00:02]} 27. Bd3 {[%emt 0:00:08]} Be8 {[%emt 0:03:10]} 28. h4 {[%emt 0:02:47]} Bh5 {[%emt 0:00:33]} 29. Bc2 {[%emt 0:00:19]} Be2 {[%emt 0:01:03]} 30. Bb1 {[%emt 0:00:13]} Bd1 {[%emt 0:04:34]} 31. Bd3 {[%emt 0:00:19]} Ba4 {[%emt 0:36:02]} 1/2-1/2

[Event "ISR Youth-Ch Finals 2021 U18"]
[Site "Ramat Hasharon"]
[Date "2021.03.26"]
[Round "9.6"]
[White "Stolyarsky, Yegor"]
[Black "Friedland, Eldar"]
[Result "1-0"]
[ECO "E63"]
[WhiteElo "2063"]
[BlackElo "2034"]
[Annotator "NA"]
[PlyCount "155"]
[EventDate "2021.03.19"]
[EventType "swiss"]
[EventCountry "ISR"]
[SourceTitle "playchess.com"]
[Source "ChessBase"]
[SourceQuality "1"]
[TimeControl "5400+30"]

1. d4 {[%emt 0:00:29]} Nf6 {[%emt 0:00:00]} 2. Nf3 {[%emt 0:00:36]} g6 {[%emt 0:00:00]} 3. c4 {[%emt 0:00:18]} Bg7 {[%emt 0:00:00]} 4. g3 {[%emt 0:00:52]} O-O {[%emt 0:00:14]} 5. Bg2 {[%emt 0:00:48]} d6 {[%emt 0:00:21]} 6. Nc3 {[%emt 0:00:42]} Nc6 {[%emt 0:00:24]} 7. O-O {[%emt 0:01:11]} a6 {[%emt 0:00:24]} 8. Bg5 {[%emt 0:01:48] 8.b3 is the modern continuation.} h6 {[%emt 0:01:16]} 9. Bf4 {[%emt 0:01:30]} Rb8 {[%emt 0:09:45]} 10. Rc1 {[%emt 0:04:36]} g5 {[%emt 0:11:31]} 11. Be3 {[%emt 0:04:29]} Ng4 {[%emt 0:00:44] [#]} 12. Ne1 $146 {[%emt 0:03:06]} ({Predecessor:} 12. Qd2 Nxe3 13. fxe3 e5 14. d5 Ne7 15. e4 f5 16. exf5 Bxf5 17. e4 Bd7 18. Nd1 {0-1 (38) Muhammad,S-Saltos Velez,A (2088) Baku 2016}) 12... f5 {[%emt 0:15:33]} 13. h3 {[%emt 0:03:48]} Nxe3 {[%emt 0:00:41]} 14. fxe3 {[%emt 0:00:09]} e5 {[%emt 0:06:50]} 15. Nc2 {[%emt 0:10:07]} e4 {[%emt 0:05:55]} 16. Qd2 {[%emt 0:02:15]} Ne7 {[%emt 0:00:45]} 17. Rf2 {[%emt 0:03:23]} c6 {[%emt 0:00:43]} 18. Rcf1 {[%emt 0:02:28]} (18. Rff1 $142) 18... d5 {[%emt 0:00:58]} 19. cxd5 {[%emt 0:01:15]} cxd5 {[%emt 0:00:10]} ({Less strong is} 19... Nxd5 20. g4 $17) 20. Kh2 {[%emt 0:01:48]} h5 {[%emt 0:00:16]} 21. Rg1 {[%emt 0:01:44]} Qd6 {[%emt 0:00:38]} 22. Bf1 {[%emt 0:00:46]} Bd7 {[%emt 0:00:12]} 23. Kh1 {[%emt 0:01:45]} Ng6 {[%emt 0:01:07]} 24. Nd1 {[%emt 0:03:15]} Rbc8 {[%emt 0:05:36]} 25. Qb4 {[%emt 0:00:31]} Qc7 {[%emt 0:06:37]} 26. Nc3 {[%emt 0:00:54]} Be6 {[%emt 0:01:19]} 27. Qb3 {[%emt 0:00:33]} Rfd8 {[%emt 0:01:12]} 28. Nb4 {[%emt 0:02:32]} Qc4 {[%emt 0:00:30]} ({Black should play} 28... Ne7 $19 29. a3 Rd6) 29. Qxc4 {[%emt 0:05:42]} Rxc4 {[%emt 0:00:04]} 30. Nc2 {[%emt 0:00:27]} Bf8 {[%emt 0:00:13]} 31. g4 {[%emt 0:06:28]} fxg4 {[%emt 0:04:35]} 32. Rf6 {[%emt 0:02:19]} Bf7 {[%emt 0:01:11]} 33. Rb6 {[%emt 0:01:25]} Rc7 {[%emt 0:02:31]} 34. Na1 {[%emt 0:03:22]} Rd6 {[%emt 0:00:46]} 35. Rxd6 {[%emt 0:01:49]} Bxd6 {[%emt 0:00:05]} 36. hxg4 {[%emt 0:00:25]} h4 {[%emt 0:00:06]} 37. Bh3 $19 {[%emt 0:00:22]} Be6 {[%emt 0:01:58]} 38. Rf1 {[%emt 0:01:23]} Kg7 {[%emt 0:00:14]} 39. Nb3 {[%emt 0:05:22]} b5 {[%emt 0:00:05]} 40. a3 {[%emt 0:01:18]} Ne7 {[%emt 0:00:58]} 41. Rc1 {[%emt 0:02:02]} Nc8 {[%emt 0:00:49]} 42. Nb1 {[%emt 0:02:22]} Rxc1+ {[%emt 0:00:55]} 43. Nxc1 {[%emt 0:00:31]} Nb6 {[%emt 0:00:05]} 44. Nd2 {[%emt 0:00:29]} Nc4 {[%emt 0:01:16]} 45. Nxc4 {[%emt 0:00:22]} bxc4 {[%emt 0:00:06]} 46. Na2 {[%emt 0:01:25]} Kf7 {[%emt 0:00:14]} 47. Nc3 {[%emt 0:01:05]} Ke7 {[%emt 0:00:08]} 48. Kg1 {[%emt 0:00:32]} Bg3 {[%emt 0:05:52]} 49. Kf1 {[%emt 0:00:51]} Kd6 {[%emt 0:00:06]} 50. Na4 {[%emt 0:12:51]} Kc6 {[%emt 0:01:14]} 51. Nc5 {[%emt 0:01:28]} Bc8 {[%emt 0:01:19]} 52. Na4 {[%emt 0:00:04]} Kc7 {[%emt 0:02:52]} 53. Nc3 {[%emt 0:00:21]} Kd6 {[%emt 0:00:09]} 54. Na2 {[%emt 0:00:52]} Bd7 {[%emt 0:03:21]} 55. Nb4 {[%emt 0:00:29]} c3 {[%emt 0:01:39]} 56. bxc3 {[%emt 0:00:54]} Bb5 {[%emt 0:00:08]} 57. Nc2 {[%emt 0:02:20]} a5 {[%emt 0:01:41]} 58. Na1 {[%emt 0:00:48]} Bc4 {[%emt 0:04:55]} 59. a4 {[%emt 0:00:05]} Kc6 {[%emt 0:00:19]} 60. Bg2 {[%emt 0:00:30]} Bd6 {[%emt 0:01:28]} 61. Ke1 {[%emt 0:00:15]} Ba3 {[%emt 0:01:37]} 62. Kd2 {[%emt 0:00:23]} Bb2 {[%emt 0:00:38]} 63. Nc2 {[%emt 0:00:14]} Bb3 {[%emt 0:00:08]} 64. Ne1 {[%emt 0:01:11]} Bxa4 {[%emt 0:01:55]} 65. c4 {[%emt 0:00:13]} Bb3 {[%emt 0:00:19]} 66. cxd5+ {[%emt 0:00:34]} Kxd5 {[%emt 0:00:14]} 67. Nd3 {[%emt 0:00:35]} a4 {[%emt 0:01:39]} 68. Nxb2 {[%emt 0:00:40]} a3 {[%emt 0:00:10]} 69. Nd3 {[%emt 0:00:05]} h3 {[%emt 0:01:29]} 70. Bh1 {[%emt 0:00:16]} h2 {[%emt 0:01:10]} 71. Kc3 {[%emt 0:00:55]} Bd1 {[%emt 0:00:32]} 72. Nf2 {[%emt 0:01:00]} Bxe2 {[%emt 0:00:19]} 73. Bxe4+ {[%emt 0:00:20]} Kd6 {[%emt 0:00:31]} 74. Kb3 {[%emt 0:00:06]} Bb5 {[%emt 0:00:44]} 75. Kxa3 {[%emt 0:00:41]} Bd7 {[%emt 0:00:08]} 76. Kb4 {[%emt 0:00:12]} Bc8 {[%emt 0:00:07]} 77. Bf3 {[%emt 0:00:24]} Bd7 {[%emt 0:00:43]} 78. e4 {[%emt 0:00:09]} 1-0

[Event "ISR Youth-Ch Finals 2021 U18"]
[Site "Ramat Hasharon"]
[Date "2021.03.26"]
[Round "9.7"]
[White "Kochavi, Ori"]
[Black "Kadria, Shay"]
[Result "1-0"]
[ECO "B90"]
[WhiteElo "2273"]
[BlackElo "2086"]
[Annotator "ChessBase"]
[PlyCount "35"]
[EventDate "2021.03.19"]
[EventType "swiss"]
[EventCountry "ISR"]
[SourceTitle "playchess.com"]
[Source "ChessBase"]
[SourceQuality "1"]
[TimeControl "5400+30"]

1. e4 {[%emt 0:00:00]} c5 {[%emt 0:00:00]} 2. Nf3 {[%emt 0:00:00]} d6 {[%emt 0:00:10]} 3. d4 {[%emt 0:00:00]} cxd4 {[%emt 0:00:07]} 4. Nxd4 {[%emt 0:00:00]} Nf6 {[%emt 0:00:15]} 5. Nc3 {[%emt 0:00:00]} a6 {[%emt 0:00:07]} 6. Be3 {[%emt 0:00:26]} e5 {[%emt 0:00:10]} 7. Nf3 {[%emt 0:00:03]} Be6 {[%emt 0:01:26]} 8. Ng5 {[%emt 0:00:05]} Be7 {[%emt 0:03:43]} 9. Nxe6 {[%emt 0:00:04]} fxe6 {[%emt 0:00:11]} 10. Bc4 {[%emt 0:00:32]} Qd7 {[%emt 0:02:12]} 11. Qf3 {[%emt 0:00:12]} b5 {[%emt 0:01:50]} 12. Bb3 {[%emt 0:00:08]} Nc6 {[%emt 0:01:30]} 13. Qh3 {[%emt 0:00:05]} Kf7 {[%emt 0:00:46]} 14. Nd5 {[%emt 0:15:04]} Rad8 {[%emt 0:12:22]} 15. Nb6 {[%emt 0:01:23]} Qe8 {[%emt 0:02:12]} 16. Bxe6+ {[%emt 0:00:27]} Kf8 {[%emt 0:00:11]} 17. O-O {[%emt 0:06:51]} Qh5 {[%emt 0:04:09]} 18. Nd7+ {[%emt 0:00:04]} 1-0

[Event "ISR Youth-Ch Finals 2021 U18"]
[Site "Ramat Hasharon"]
[Date "2021.03.26"]
[Round "9.8"]
[White "Sheinkman, Lidan"]
[Black "Iliaguev, Daniel"]
[Result "1/2-1/2"]
[ECO "E11"]
[WhiteElo "1895"]
[BlackElo "2103"]
[Annotator "NA"]
[PlyCount "120"]
[EventDate "2021.03.19"]
[EventType "swiss"]
[EventCountry "ISR"]
[SourceTitle "playchess.com"]
[Source "ChessBase"]
[SourceQuality "1"]
[TimeControl "5400+30"]

1. d4 {[%emt 0:01:03]} e6 {[%emt 0:00:33]} 2. c4 {[%emt 0:00:33]} Nf6 {[%emt 0:00:24]} 3. g3 {[%emt 0:00:10]} d5 {[%emt 0:01:08]} 4. Nf3 {[%emt 0:00:02]} Bb4+ {[%emt 0:01:08]} 5. Bd2 {[%emt 0:00:15]} Be7 {[%emt 0:00:09]} 6. Bg2 {[%emt 0:00:11]} O-O {[%emt 0:00:26]} 7. O-O {[%emt 0:02:11]} c6 {[%emt 0:01:16]} 8. b3 {[%emt 0:01:30]} Nbd7 {[%emt 0:00:46]} 9. Qc2 {[%emt 0:00:17]} b6 {[%emt 0:00:25]} 10. Bc3 {[%emt 0:00:17]} Ne4 {[%emt 0:05:39]} 11. Ne5 {[%emt 0:03:42]} Nxe5 {[%emt 0:04:10]} 12. Bxe4 {[%emt 0:02:55]} Ng6 {[%emt 0:00:02]} 13. Bg2 {[%emt 0:00:48]} Ba6 {[%emt 0:02:30]} 14. Nd2 {[%emt 0:11:43]} f5 {[%emt 0:01:26]} 15. Bb2 {[%emt 0:03:10]} Rc8 {[%emt 0:08:44]} 16. Rac1 {[%emt 0:06:39]} Nh8 {[%emt 0:03:46]} 17. Qb1 {[%emt 0:03:28]} Nf7 {[%emt 0:04:00]} 18. Nf3 {[%emt 0:05:58]} g5 {[%emt 0:05:43]} 19. Ne5 {[%emt 0:01:03]} Nxe5 {[%emt 0:00:26]} 20. dxe5 {[%emt 0:00:04]} Qe8 {[%emt 0:04:55]} 21. Rfd1 {[%emt 0:09:51]} Qh5 {[%emt 0:19:43]} 22. cxd5 {[%emt 0:00:18]} cxd5 {[%emt 0:00:04]} 23. e3 {[%emt 0:00:18]} Rxc1 {[%emt 0:15:35]} ({Better is} 23... f4 $17 24. Rxc8 Rxc8) 24. Rxc1 {[%emt 0:01:59]} Rc8 {[%emt 0:00:09]} 25. Rxc8+ {[%emt 0:01:35]} Bxc8 {[%emt 0:00:02]} 26. Qc2 {[%emt 0:00:20]} Qe8 {[%emt 0:00:14]} 27. Bd4 {[%emt 0:00:21]} Ba6 {[%emt 0:07:50]} 28. Qc7 {[%emt 0:06:14]} Qc8 {[%emt 0:00:08]} 29. Qxc8+ {[%emt 0:01:06]} Bxc8 {[%emt 0:00:02]} 30. f4 {[%emt 0:00:28]} g4 {[%emt 0:00:47]} 31. Bf1 {[%emt 0:00:56]} Bd7 {[%emt 0:00:58]} 32. Bd3 {[%emt 0:00:12]} h5 {[%emt 0:00:21]} 33. Kf2 {[%emt 0:00:06]} h4 {[%emt 0:00:11]} 34. Ke2 {[%emt 0:00:41]} h3 {[%emt 0:00:19]} 35. a4 {[%emt 0:02:14]} Bb4 {[%emt 0:00:49]} 36. Bb2 $11 {[%emt 0:02:31]} Kf8 {[%emt 0:03:36]} 37. Bc1 {[%emt 0:00:17]} a5 {[%emt 0:02:25]} 38. Bb5 {[%emt 0:01:12]} Ke7 {[%emt 0:00:53]} 39. Bb2 {[%emt 0:00:09]} Kd8 {[%emt 0:02:46]} 40. Bd4 {[%emt 0:00:05]} Bc5 {[%emt 0:00:11]} 41. Kf2 {[%emt 0:00:15]} Kc7 {[%emt 0:00:35]} 42. Ke2 {[%emt 0:00:06]} Bc6 {[%emt 0:00:59]} 43. Kf2 {[%emt 0:00:15]} Bb4 {[%emt 0:00:15]} 44. Ke2 {[%emt 0:00:08]} Kb7 {[%emt 0:00:21]} 45. Kf2 {[%emt 0:00:09]} Bxb5 {[%emt 0:01:51]} 46. axb5 {[%emt 0:00:03]} Bc5 {[%emt 0:00:02]} 47. Ke2 {[%emt 0:00:14]} Bxd4 {[%emt 0:00:05]} 48. exd4 {[%emt 0:00:06]} Kc7 {[%emt 0:00:01]} 49. Kd3 {[%emt 0:00:11]} Kb7 {[%emt 0:00:14]} 50. Kc3 {[%emt 0:00:06]} Kc7 {[%emt 0:00:18]} 51. Kb2 {[%emt 0:00:06]} Kb7 {[%emt 0:00:23]} 52. Ka3 {[%emt 0:00:05]} Kc7 {[%emt 0:00:13]} 53. Ka4 {[%emt 0:00:06]} Kb7 {[%emt 0:00:16]} 54. b4 {[%emt 0:00:04]} axb4 {[%emt 0:00:05]} 55. Kb3 {[%emt 0:00:17]} Kc7 {[%emt 0:00:03]} 56. Kb2 {[%emt 0:00:15]} b3 {[%emt 0:00:06]} 57. Kc1 {[%emt 0:00:05]} b2+ {[%emt 0:00:05]} 58. Kc2 {[%emt 0:00:12]} Kb7 {[%emt 0:00:02]} 59. Kb1 {[%emt 0:00:11]} Kc7 {[%emt 0:00:03]} 60. Ka2 {[%emt 0:00:05]} Kb7 {[%emt 0:00:01]} 1/2-1/2

[Event "ISR Youth-Ch Finals 2021 U18"]
[Site "Ramat Hasharon"]
[Date "2021.03.26"]
[Round "9.9"]
[White "Sobel, Ido"]
[Black "Cohen Revivo, Shoham"]
[Result "0-1"]
[ECO "B23"]
[WhiteElo "1885"]
[BlackElo "2171"]
[Annotator "ChessBase"]
[PlyCount "66"]
[EventDate "2021.03.19"]
[EventType "swiss"]
[EventCountry "ISR"]
[SourceTitle "playchess.com"]
[Source "ChessBase"]
[SourceQuality "1"]
[TimeControl "5400+30"]

1. e4 {[%emt 0:00:00]} c5 {[%emt 0:00:00]} 2. Nc3 {[%emt 0:00:00]} Nc6 {[%emt 0:00:00]} 3. f4 {[%emt 0:00:00]} e6 {[%emt 0:00:44]} 4. Nf3 {[%emt 0:00:00]} d5 {[%emt 0:00:07]} 5. Bb5 {[%emt 0:00:29]} Nge7 {[%emt 0:01:20]} 6. O-O {[%emt 0:03:31]} d4 {[%emt 0:02:12]} 7. Ne2 {[%emt 0:01:42]} a6 {[%emt 0:00:06]} 8. Bxc6+ {[%emt 0:00:09]} Nxc6 {[%emt 0:00:02]} 9. d3 {[%emt 0:00:12]} Be7 {[%emt 0:00:53]} 10. Ng3 {[%emt 0:02:30]} h5 {[%emt 0:00:40]} 11. e5 {[%emt 0:02:10]} b5 {[%emt 0:03:42]} 12. Ne4 {[%emt 0:01:35]} Bb7 {[%emt 0:00:08]} 13. Bd2 {[%emt 0:02:37]} Qd5 {[%emt 0:03:00]} 14. Qe2 {[%emt 0:02:46]} O-O-O {[%emt 1:24:06]} 15. Rfc1 {[%emt 1:19:49]} h4 {[%emt 0:00:30]} 16. h3 {[%emt 0:00:30]} f5 {[%emt 0:00:00]} 17. Neg5 {[%emt 0:00:00]} Rd7 {[%emt 0:00:00]} 18. Be1 {[%emt 0:00:00]} Bxg5 {[%emt 0:00:00]} 19. Nxg5 {[%emt 0:00:00]} Ne7 {[%emt 0:00:00]} 20. Qf3 {[%emt 0:00:00]} Qxf3 {[%emt 0:00:00]} 21. gxf3 {[%emt 0:00:00]} Rh6 {[%emt 0:00:00]} 22. Kf2 {[%emt 0:00:00]} Nd5 {[%emt 0:03:30]} 23. Bd2 {[%emt 0:00:00]} c4 {[%emt 0:00:00]} 24. a3 {[%emt 0:00:00]} Rc7 {[%emt 0:00:00]} 25. Rab1 {[%emt 0:00:00]} Kb8 {[%emt 0:00:00]} 26. a4 {[%emt 0:00:00]} bxa4 {[%emt 0:00:00]} 27. Ra1 {[%emt 0:00:00]} c3 {[%emt 0:00:00]} 28. bxc3 {[%emt 0:00:00]} dxc3 {[%emt 0:00:00]} 29. Be3 {[%emt 0:00:00]} Bc6 {[%emt 0:00:00]} 30. Rcb1+ {[%emt 0:00:00]} Kc8 {[%emt 0:00:00]} 31. Bb6 {[%emt 0:00:00]} Rb7 {[%emt 0:00:00]} 32. Be3 {[%emt 0:00:00]} Rb2 {[%emt 0:00:00]} 33. Rc1 {[%emt 0:00:00]} Nb4 {[%emt 0:00:00]} 0-1

[Event "ISR Youth-Ch Finals 2021 U18"]
[Site "Ramat Hasharon"]
[Date "2021.03.26"]
[Round "9.10"]
[White "Levitan, Ronit"]
[Black "Mondri, Nadav"]
[Result "1/2-1/2"]
[ECO "C54"]
[WhiteElo "2048"]
[BlackElo "1803"]
[Annotator "ChessBase"]
[PlyCount "105"]
[EventDate "2021.03.19"]
[EventType "swiss"]
[EventCountry "ISR"]
[SourceTitle "playchess.com"]
[Source "ChessBase"]
[SourceQuality "1"]
[TimeControl "5400+30"]

1. e4 {[%emt 0:00:40]} e5 {[%emt 0:00:00]} 2. Nf3 {[%emt 0:00:06]} Nc6 {[%emt 0:00:00]} 3. Bc4 {[%emt 0:00:08]} Bc5 {[%emt 0:00:42]} 4. c3 {[%emt 0:00:13]} Nf6 {[%emt 0:00:42]} 5. d3 {[%emt 0:00:20]} O-O {[%emt 0:01:01]} 6. O-O {[%emt 0:00:35]} d6 {[%emt 0:03:43]} 7. Nbd2 {[%emt 0:01:47]} Be6 {[%emt 0:01:23]} 8. Bxe6 {[%emt 0:04:18]} fxe6 {[%emt 0:00:09]} 9. h3 {[%emt 0:00:13]} Kh8 {[%emt 0:02:29]} 10. Re1 {[%emt 0:06:33]} Bb6 {[%emt 0:02:38]} 11. Nf1 {[%emt 0:02:27]} Qe8 {[%emt 0:04:00]} 12. Be3 {[%emt 0:06:57]} Nh5 {[%emt 0:04:04]} 13. Ng5 {[%emt 0:11:02]} Qg6 {[%emt 0:04:17]} 14. Qg4 {[%emt 0:18:25]} Rf6 {[%emt 0:07:56]} 15. Nh2 {[%emt 0:03:06]} Raf8 {[%emt 0:01:17]} 16. Ngf3 {[%emt 0:02:24]} Nf4 {[%emt 0:08:39]} 17. Rad1 {[%emt 0:04:42]} Qh6 {[%emt 0:07:39]} 18. Qg3 {[%emt 0:09:21]} Rg6 {[%emt 0:04:19]} 19. Ng4 {[%emt 0:26:13]} Qh5 {[%emt 0:03:15]} 20. d4 {[%emt 0:00:00]} a6 {[%emt 0:07:25]} 21. dxe5 {[%emt 0:00:00]} Nxe5 {[%emt 0:02:19]} 22. Nfxe5 {[%emt 0:00:00]} dxe5 {[%emt 0:00:09]} 23. Bxf4 {[%emt 0:02:00]} exf4 {[%emt 0:33:24]} 24. Qxf4 {[%emt 0:00:00]} Qc5 {[%emt 0:00:30]} 25. Qd2 {[%emt 0:01:00]} Rxg4 {[%emt 0:00:30]} 26. hxg4 {[%emt 0:00:00]} Qxf2+ {[%emt 0:00:00]} 27. Qxf2 {[%emt 0:00:00]} Bxf2+ {[%emt 0:00:00]} 28. Kf1 {[%emt 0:00:00]} Bxe1+ {[%emt 0:00:00]} 29. Kxe1 {[%emt 0:00:00]} h6 {[%emt 0:00:00]} 30. Rd7 {[%emt 0:00:00]} Rf4 {[%emt 0:00:00]} 31. Rxc7 {[%emt 0:00:00]} Rxe4+ {[%emt 0:00:00]} 32. Kf2 {[%emt 0:00:00]} b5 {[%emt 0:00:00]} 33. Kf3 {[%emt 0:00:00]} Ra4 {[%emt 0:00:00]} 34. a3 {[%emt 0:00:00]} e5 {[%emt 0:00:00]} 35. Re7 {[%emt 0:00:00]} Rf4+ {[%emt 0:00:00]} 36. Kg3 {[%emt 0:00:00]} Re4 {[%emt 0:00:00]} 37. Re6 {[%emt 0:00:00]} Re2 {[%emt 0:00:00]} 38. b4 {[%emt 0:00:00]} Re3+ {[%emt 0:00:00]} 39. Kf2 {[%emt 0:00:00]} Rxc3 {[%emt 0:00:00]} 40. Rxa6 {[%emt 0:00:00]} e4 {[%emt 0:00:00]} 41. g5 {[%emt 0:03:07]} hxg5 {[%emt 0:00:00]} 42. Rg6 {[%emt 0:00:53]} Rxa3 {[%emt 0:00:39]} 43. Rxg5 {[%emt 0:00:05]} Rb3 {[%emt 0:01:21]} 44. Rxb5 {[%emt 0:00:08]} Kh7 {[%emt 0:00:14]} 45. Rb6 {[%emt 0:00:48]} g6 {[%emt 0:00:26]} 46. b5 {[%emt 0:01:12]} Kh6 {[%emt 0:00:13]} 47. Rb8 {[%emt 0:00:35]} Kg5 {[%emt 0:00:13]} 48. b6 {[%emt 0:00:44]} Kg4 {[%emt 0:01:05]} 49. b7 {[%emt 0:01:36]} Kg5 {[%emt 0:00:55]} 50. Ke2 {[%emt 0:00:20]} Kg4 {[%emt 0:02:07]} 51. Kf2 {[%emt 0:00:27]} Kg5 {[%emt 0:00:07]} 52. Kg1 {[%emt 0:00:44]} Kg4 {[%emt 0:00:15]} 53. Kf2 {[%emt 0:01:29]} 1/2-1/2